[Event "NJSK 2026 Jeugd B"]
[Site "Helmond, Netherlands"]
[Date "2026.04.27"]
[Round "3.6"]
[White "De Jong, Lode"]
[Black "Winter, Sven"]
[Result "1/2-1/2"]
[TimeControl "90min/40moves + 30min + 30sec/move"]
[WhiteTitle "-"]
[BlackTitle "-"]
[WhiteFideId "40101860"]
[BlackFideId "1092375"]
[WhiteElo "1902"]
[BlackElo "2013"]

1. d4 {[%clk 01:30:58]} {[%emt 00:00:02]} Nf6 {[%clk 01:30:50]} {[%emt
00:00:10]} 2. c4 {[%clk 01:31:24]} {[%emt 00:00:04]} b6 {[%clk 01:30:58]}
{[%emt 00:00:23]} 3. Nc3 {[%clk 01:27:35]} {[%emt 00:04:19]} Bb7 {[%clk
01:31:18]} {[%emt 00:00:11]} 4. Qc2 {[%clk 01:27:49]} {[%emt 00:00:15]} d5
{[%clk 01:31:31]} {[%emt 00:00:17]} 5. cxd5 {[%clk 01:27:18]} {[%emt 00:01:01]}
Nxd5 {[%clk 01:31:52]} {[%emt 00:00:09]} 6. e4 {[%clk 01:27:06]} {[%emt
00:00:43]} Nxc3 {[%clk 01:32:12]} {[%emt 00:00:09]} 7. bxc3 {[%clk 01:27:32]}
{[%emt 00:00:04]} e6 {[%clk 01:32:34]} {[%emt 00:00:08]} 8. Nf3 {[%clk
01:27:03]} {[%emt 00:00:58]} Be7 {[%clk 01:31:55]} {[%emt 00:01:10]} 9. Be2
{[%clk 01:23:57]} {[%emt 00:03:35]} c5 {[%clk 01:30:23]} {[%emt 00:02:03]} 10.
O-O {[%emt 00:04:58]} O-O {[%clk 01:25:52]} {[%emt 00:04:59]} 11. Rd1 {[%clk
01:15:45]} {[%emt 00:04:16]} cxd4 {[%clk 01:25:50]} {[%emt 00:00:33]} 12. cxd4
{[%clk 01:15:31]} {[%emt 00:00:43]} Nd7 {[%clk 01:25:33]} {[%emt 00:00:47]} 13.
Bd3 {[%clk 01:08:07]} {[%emt 00:07:54]} Rc8 {[%clk 01:25:45]} {[%emt 00:00:18]}
14. Qe2 {[%clk 01:08:32]} {[%emt 00:00:05]} Nf6 {[%clk 01:19:42]} {[%emt
00:06:33]} 15. Bf4 {[%clk 01:05:58]} {[%emt 00:03:04]} b5 {[%clk 01:14:41]}
{[%emt 00:05:32]} 16. d5 {[%clk 00:53:25]} {[%emt 00:13:03]} exd5 {[%clk
01:06:32]} {[%emt 00:08:39]} 17. e5 {[%clk 00:52:44]} {[%emt 00:01:10]} Nd7
{[%clk 01:05:10]} {[%emt 00:01:52]} 18. Bxb5 {[%clk 00:42:26]} {[%emt
00:10:48]} Nc5 {[%clk 01:05:01]} {[%emt 00:00:40]} 19. Nd4 {[%clk 00:40:05]}
{[%emt 00:02:51]} Qb6 {[%clk 00:57:27]} {[%emt 00:08:04]} 20. Nf5 {[%clk
00:34:41]} {[%emt 00:05:53]} Qe6 {[%clk 00:48:12]} {[%emt 00:09:45]} 21. Qg4
{[%clk 00:31:53]} {[%emt 00:03:18]} g6 {[%clk 00:47:55]} {[%emt 00:00:48]} 22.
Nxe7+ {[%clk 00:32:17]} {[%emt 00:00:04]} Qxe7 {[%clk 00:48:13]} {[%emt
00:00:13]} 23. Bh6 {[%emt 00:04:52]} Rfd8 {[%clk 00:44:51]} 24. Bg5 {[%clk
00:31:57]} {[%emt 00:00:20]} Qxe5 {[%clk 00:44:10]} {[%emt 00:01:12]} 25. Bxd8
{[%clk 00:27:50]} {[%emt 00:04:36]} Rxd8 {[%clk 00:44:15]} {[%emt 00:00:25]} 26.
Qd4 {[%clk 00:27:27]} {[%emt 00:00:53]} Qd6 {[%clk 00:43:19]} {[%emt 00:01:27]}
27. Rac1 {[%clk 00:27:29]} {[%emt 00:00:27]} Rc8 {[%clk 00:37:06]} {[%emt
00:06:44]} 28. Rc2 {[%clk 00:19:50]} {[%emt 00:08:09]} a6 {[%clk 00:36:56]}
{[%emt 00:00:39]} 29. Rdc1 {[%clk 00:17:05]} {[%emt 00:03:15]} axb5 {[%clk
00:36:06]} {[%emt 00:01:20]} 30. Rxc5 {[%clk 00:16:44]} {[%emt 00:00:52]} Re8
{[%clk 00:35:42]} {[%emt 00:00:53]} 31. Rxb5 {[%clk 00:17:06]} {[%emt
00:00:08]} Re4 {[%clk 00:31:57]} {[%emt 00:04:15]} 32. Qd2 {[%clk 00:13:03]}
{[%emt 00:04:33]} Qe7 {[%clk 00:30:37]} {[%emt 00:01:50]} 33. Rcb1 {[%clk
00:11:35]} {[%emt 00:01:59]} Re2 {[%clk 00:27:30]} {[%emt 00:03:35]} 34. Qb4
{[%clk 00:03:57]} {[%emt 00:08:10]} Qf6 {[%clk 00:27:00]} {[%emt 00:01:00]} 35.
Rf1 {[%clk 00:04:26]} {[%emt 00:00:01]} Re4 {[%clk 00:21:43]} {[%emt 00:05:46]}
36. Qb2 {[%clk 00:04:01]} {[%emt 00:00:56]} Qxb2 {[%clk 00:20:41]} {[%emt
00:01:31]} 37. Rxb2 {[%clk 00:04:30]} {[%emt 00:00:01]} Ba6 {[%clk 00:20:38]}
{[%emt 00:00:34]} 38. Rd1 {[%clk 00:04:54]} {[%emt 00:00:05]} Bc4 {[%clk
00:15:42]} {[%emt 00:05:26]} 39. f3 {[%clk 00:05:11]} {[%emt 00:00:13]} Re3
{[%clk 00:14:15]} {[%emt 00:01:57]} 40. Rb8+ {[%clk 00:00:52]} {[%emt
00:04:50]} Kg7 {[%clk 00:14:19]} {[%emt 00:00:26]} 41. Ra8 {[%clk 00:29:50]}
{[%emt 00:01:32]} Re2 {[%clk 00:44:32]} {[%emt 00:00:17]} 42. Ra1 {[%clk
00:30:18]} {[%emt 00:00:02]} d4 {[%clk 00:44:22]} {[%emt 00:00:39]} 43. Ra4
{[%clk 00:27:10]} {[%emt 00:03:38]} Rc2 {[%clk 00:42:24]} {[%emt 00:02:28]} 44.
Rxc4 {[%clk 00:24:32]} {[%emt 00:03:09]} Rxc4 {[%clk 00:42:37]} {[%emt
00:00:17]} 45. a4 {[%clk 00:24:49]} {[%emt 00:00:13]} d3 {[%clk 00:42:35]}
{[%emt 00:00:31]} 46. Kf2 {[%clk 00:23:47]} {[%emt 00:01:32]} d2 {[%clk
00:42:57]} {[%emt 00:00:09]} 47. Rd1 {[%emt 00:00:21]} 1/2-1/2

[Event "NJSK 2026 Jeugd B"]
[Site "Helmond, Netherlands"]
[Date "2026.04.27"]
[Round "3.7"]
[White "Grooten, Tommy"]
[Black "Okita, Shinsaku"]
[Result "1-0"]
[TimeControl "90min/40moves + 30min + 30sec/move"]
[WhiteTitle "-"]
[BlackTitle "-"]
[WhiteFideId "1068806"]
[BlackFideId "1094823"]
[WhiteElo "2347"]
[BlackElo "1899"]

1. d4 {[%clk 01:29:41]} {[%emt 00:01:18]} d5 {[%clk 01:30:56]} {[%emt
00:00:05]} 2. Nf3 {[%clk 01:30:00]} {[%emt 00:00:10]} Nf6 {[%clk 01:31:01]}
{[%emt 00:00:25]} 3. Bf4 {[%clk 01:30:15]} {[%emt 00:00:15]} c6 {[%clk
01:29:15]} {[%emt 00:02:16]} 4. e3 {[%clk 01:29:24]} {[%emt 00:01:21]} Bg4
{[%clk 01:26:11]} {[%emt 00:03:34]} 5. Nbd2 {[%clk 01:27:34]} {[%emt 00:02:20]}
Nbd7 {[%clk 01:23:18]} {[%emt 00:03:24]} 6. h3 {[%clk 01:15:14]} {[%emt
00:12:49]} Bxf3 {[%clk 01:13:54]} {[%emt 00:09:54]} 7. Qxf3 {[%clk 01:12:17]}
{[%emt 00:03:26]} e6 {[%clk 01:12:44]} {[%emt 00:01:41]} 8. g4 {[%clk
01:05:35]} {[%emt 00:07:11]} Qb6 {[%clk 01:01:59]} {[%emt 00:11:15]} 9. O-O-O
{[%clk 01:05:00]} {[%emt 00:01:04]} c5 {[%clk 00:49:42]} {[%emt 00:12:49]} 10.
g5 {[%clk 01:02:50]} {[%emt 00:02:39]} Ng8 {[%clk 00:46:05]} {[%emt 00:04:07]}
11. e4 {[%clk 00:57:12]} {[%emt 00:06:08]} cxd4 {[%clk 00:31:57]} {[%emt
00:14:38]} 12. exd5 {[%clk 00:55:24]} {[%emt 00:02:17]} e5 {[%clk 00:28:07]}
{[%emt 00:04:20]} 13. Nc4 {[%clk 00:47:05]} {[%emt 00:08:49]} Qc7 {[%clk
00:26:05]} {[%emt 00:02:32]} 14. d6 {[%clk 00:42:00]} {[%emt 00:05:35]} Bxd6
{[%clk 00:13:43]} {[%emt 00:12:52]} 15. Rxd4 {[%clk 00:40:17]} {[%emt
00:02:12]} Kf8 {[%clk 00:06:35]} {[%emt 00:07:39]} 16. Bg3 {[%clk 00:32:32]}
{[%emt 00:08:14]} Be7 {[%clk 00:03:40]} {[%emt 00:03:25]} 17. h4 {[%clk
00:32:23]} {[%emt 00:00:38]} Rc8 {[%clk 00:02:31]} {[%emt 00:01:40]} 18. Rxd7
{[%clk 00:26:02]} {[%emt 00:06:51]} Qxd7 {[%clk 00:02:11]} {[%emt 00:00:50]} 19.
Nxe5 {[%clk 00:26:25]} {[%emt 00:00:06]} Qe8 {[%clk 00:00:46]} {[%emt
00:01:56]} 20. Bb5 {[%clk 00:26:13]} {[%emt 00:00:41]} Bxg5+ {[%clk 00:00:37]}
{[%emt 00:00:40]} 21. hxg5 {[%clk 00:26:34]} {[%emt 00:00:09]} Qe6 {[%clk
00:00:36]} {[%emt 00:00:32]} 22. Nd7+ {[%clk 00:20:44]} {[%emt 00:06:19]} Ke7
{[%clk 00:00:59]} {[%emt 00:00:07]} 23. Qa3+ {[%clk 00:21:08]} {[%emt
00:00:06]} Kd8 {[%clk 00:01:09]} {[%emt 00:00:20]} 24. Rd1 {[%clk 00:21:27]}
{[%emt 00:00:11]} 1-0

[Event "NJSK 2026 Jeugd B"]
[Site "Helmond, Netherlands"]
[Date "2026.04.27"]
[Round "3.8"]
[White "Zecha, Oscar"]
[Black "Van Haaften, Jelle"]
[Result "1-0"]
[TimeControl "90min/40moves + 30min + 30sec/move"]
[WhiteTitle "-"]
[BlackTitle "-"]
[WhiteFideId "1073826"]
[BlackFideId "1096281"]
[WhiteElo "2120"]
[BlackElo "1882"]

1. e4 {[%clk 01:30:55]} {[%emt 00:00:04]} c6 {[%clk 01:30:56]} {[%emt
00:00:05]} 2. d4 {[%clk 01:31:23]} {[%emt 00:00:02]} d5 {[%clk 01:31:20]}
{[%emt 00:00:06]} 3. e5 {[%clk 01:31:50]} {[%emt 00:00:03]} Bf5 {[%clk
01:31:43]} {[%emt 00:00:06]} 4. Nd2 {[%clk 01:32:17]} {[%emt 00:00:04]} e6
{[%clk 01:32:03]} {[%emt 00:00:09]} 5. Nb3 {[%clk 01:32:40]} {[%emt 00:00:07]}
Nd7 {[%clk 01:30:50]} {[%emt 00:01:43]} 6. Nf3 {[%clk 01:33:05]} {[%emt
00:00:05]} Ne7 {[%clk 01:29:41]} {[%emt 00:01:38]} 7. Be2 {[%clk 01:33:16]}
{[%emt 00:00:21]} Nc8 {[%clk 01:26:07]} {[%emt 00:04:03]} 8. Be3 {[%clk
01:32:23]} {[%emt 00:01:24]} Be7 {[%clk 01:23:31]} {[%emt 00:03:05]} 9. O-O
{[%clk 01:32:15]} {[%emt 00:00:38]} O-O {[%clk 01:22:35]} {[%emt 00:01:25]} 10.
Qd2 {[%clk 01:30:57]} {[%emt 00:01:50]} a6 {[%clk 01:06:53]} {[%emt 00:16:12]}
11. Ne1 {[%clk 01:21:35]} {[%emt 00:09:51]} Na7 {[%clk 00:57:57]} {[%emt
00:09:27]} 12. Nd3 {[%clk 01:20:57]} {[%emt 00:01:07]} Bxd3 {[%clk 00:55:39]}
{[%emt 00:02:49]} 13. Bxd3 {[%clk 01:20:56]} {[%emt 00:00:31]} c5 {[%clk
00:55:16]} {[%emt 00:00:53]} 14. Nxc5 {[%clk 01:14:27]} {[%emt 00:06:59]} Bxc5
{[%clk 00:54:41]} {[%emt 00:01:05]} 15. dxc5 {[%clk 01:14:54]} {[%emt
00:00:03]} Nxe5 {[%clk 00:54:55]} {[%emt 00:00:16]} 16. Be2 {[%clk 01:10:29]}
{[%emt 00:04:55]} Qh4 {[%clk 00:39:32]} {[%emt 00:15:52]} 17. Bf4 {[%clk
00:53:13]} {[%emt 00:17:48]} Nc4 {[%clk 00:28:26]} {[%emt 00:11:35]} 18. Bxc4
{[%clk 00:51:21]} {[%emt 00:02:21]} dxc4 {[%clk 00:27:41]} {[%emt 00:01:15]} 19.
Bg3 {[%clk 00:49:48]} {[%emt 00:02:04]} Qf6 {[%clk 00:23:27]} {[%emt 00:04:44]}
20. Qb4 {[%clk 00:50:12]} {[%emt 00:00:06]} c3 {[%clk 00:23:26]} {[%emt
00:00:31]} 21. b3 {[%clk 00:44:37]} {[%emt 00:06:05]} Nb5 {[%clk 00:23:28]}
{[%emt 00:00:28]} 22. Rad1 {[%clk 00:39:46]} {[%emt 00:05:21]} Rfd8 {[%clk
00:19:38]} {[%emt 00:04:20]} 23. a4 {[%clk 00:31:37]} {[%emt 00:08:40]} Nd4
{[%clk 00:01:00]} {[%emt 00:19:07]} 24. Qxb7 {[%clk 00:31:43]} {[%emt
00:00:25]} e5 {[%clk 00:00:35]} {[%emt 00:00:55]} 25. Qe4 {[%clk 00:30:31]}
{[%emt 00:01:41]} Qc6 {[%clk 00:00:32]} {[%emt 00:00:34]} 26. Rxd4 {[%clk
00:30:43]} {[%emt 00:00:17]} 1-0

[Event "NJSK 2026 Jeugd B"]
[Site "Helmond, Netherlands"]
[Date "2026.04.27"]
[Round "3.9"]
[White "Wierenga, Luuk"]
[Black "Roebers, Bregje"]
[Result "1-0"]
[TimeControl "90min/40moves + 30min + 30sec/move"]
[WhiteTitle "-"]
[BlackTitle "-"]
[WhiteFideId "1094874"]
[BlackFideId "1085174"]
[WhiteElo "1977"]
[BlackElo "1945"]

1. d4 {[%clk 01:30:57]} {[%emt 00:00:02]} g6 {[%clk 01:30:26]} {[%emt
00:00:34]} 2. Nf3 {[%clk 01:30:28]} {[%emt 00:01:00]} Bg7 {[%clk 01:29:46]}
{[%emt 00:01:10]} 3. c3 {[%clk 01:28:56]} {[%emt 00:02:02]} d6 {[%clk
01:28:08]} {[%emt 00:02:08]} 4. e4 {[%clk 01:27:57]} {[%emt 00:01:29]} Nf6
{[%clk 01:21:32]} {[%emt 00:07:06]} 5. Bd3 {[%clk 01:27:34]} {[%emt 00:00:52]}
O-O {[%clk 01:18:44]} {[%emt 00:03:19]} 6. O-O {[%clk 01:23:08]} {[%emt
00:04:56]} c5 {[%clk 01:08:51]} {[%emt 00:10:24]} 7. h3 {[%clk 01:18:51]}
{[%emt 00:04:44]} Nc6 {[%clk 01:00:39]} {[%emt 00:08:44]} 8. d5 {[%clk
01:08:10]} {[%emt 00:11:10]} Ne5 {[%clk 00:52:36]} {[%emt 00:08:33]} 9. Nxe5
{[%clk 01:07:09]} {[%emt 00:01:32]} dxe5 {[%clk 00:52:27]} {[%emt 00:00:40]} 10.
Be3 {[%clk 01:00:25]} {[%emt 00:07:13]} Qc7 {[%clk 00:49:30]} {[%emt 00:03:27]}
11. Qe2 {[%clk 00:58:17]} {[%emt 00:02:37]} c4 {[%clk 00:21:39]} {[%emt
00:28:21]} 12. Bxc4 {[%clk 00:55:24]} {[%emt 00:03:23]} Nxe4 {[%clk 00:21:53]}
{[%emt 00:00:16]} 13. Nd2 {[%clk 00:51:06]} {[%emt 00:04:48]} Nd6 {[%clk
00:20:51]} {[%emt 00:01:33]} 14. Bb3 {[%clk 00:50:36]} {[%emt 00:00:59]} f5
{[%clk 00:18:28]} {[%emt 00:02:54]} 15. f4 {[%clk 00:45:32]} {[%emt 00:05:33]}
e4 {[%clk 00:18:22]} {[%emt 00:00:36]} 16. Qf2 {[%clk 00:43:58]} {[%emt
00:02:05]} b6 {[%clk 00:15:23]} {[%emt 00:03:29]} 17. Kh1 {[%clk 00:40:11]}
{[%emt 00:04:17]} e6 {[%clk 00:13:09]} {[%emt 00:02:44]} 18. Bd4 {[%clk
00:30:12]} {[%emt 00:10:28]} Kh8 {[%clk 00:11:31]} {[%emt 00:02:09]} 19. a4
{[%clk 00:25:07]} {[%emt 00:05:36]} exd5 {[%clk 00:10:33]} {[%emt 00:01:28]} 20.
Bxd5 {[%clk 00:24:53]} {[%emt 00:00:43]} Bb7 {[%clk 00:08:44]} {[%emt
00:02:19]} 21. Bb3 {[%clk 00:24:28]} {[%emt 00:00:55]} Rad8 {[%clk 00:05:19]}
{[%emt 00:03:55]} 22. Rfd1 {[%clk 00:22:21]} {[%emt 00:02:37]} Bxd4 {[%clk
00:04:04]} {[%emt 00:01:46]} 23. Qxd4+ {[%clk 00:22:20]} {[%emt 00:00:31]} Qg7
{[%clk 00:04:29]} {[%emt 00:00:05]} 24. Nf1 {[%clk 00:21:36]} {[%emt 00:01:13]}
Qxd4 {[%clk 00:04:08]} {[%emt 00:00:52]} 25. Rxd4 {[%clk 00:21:54]} {[%emt
00:00:13]} Ba6 {[%clk 00:04:29]} {[%emt 00:00:09]} 26. Ne3 {[%clk 00:20:11]}
{[%emt 00:02:11]} Nb7 {[%clk 00:04:10]} {[%emt 00:00:49]} 27. Bd5 {[%clk
00:18:59]} {[%emt 00:01:43]} Nc5 {[%clk 00:03:54]} {[%emt 00:00:46]} 28. a5
{[%clk 00:15:03]} {[%emt 00:04:26]} b5 {[%clk 00:01:44]} {[%emt 00:02:40]} 29.
Nc2 {[%clk 00:09:31]} {[%emt 00:06:00]} Rd6 {[%clk 00:01:17]} {[%emt 00:00:58]}
30. Nb4 {[%clk 00:08:37]} {[%emt 00:01:24]} Bb7 {[%clk 00:00:42]} {[%emt
00:01:06]} 31. Rad1 {[%clk 00:06:19]} {[%emt 00:02:47]} Rfd8 {[%clk 00:00:46]}
{[%emt 00:00:27]} 32. Kg1 {[%clk 00:06:23]} {[%emt 00:00:25]} Bxd5 {[%clk
00:00:55]} {[%emt 00:00:21]} 33. Rxd5 {[%clk 00:05:52]} {[%emt 00:01:02]} Rxd5
{[%clk 00:00:44]} {[%emt 00:00:40]} 34. Rxd5 {[%clk 00:06:12]} {[%emt
00:00:11]} Rxd5 {[%clk 00:00:48]} {[%emt 00:00:26]} 35. Nxd5 {[%clk 00:06:38]}
{[%emt 00:00:04]} Nb3 {[%clk 00:00:42]} {[%emt 00:00:36]} 36. a6 {[%clk
00:05:58]} {[%emt 00:01:09]} Kg7 {[%clk 00:00:56]} {[%emt 00:00:17]} 37. Nc7
{[%clk 00:05:21]} {[%emt 00:01:06]} Nc5 {[%clk 00:01:22]} {[%emt 00:00:05]} 38.
b4 {[%clk 00:04:40]} {[%emt 00:01:11]} Nd7 {[%clk 00:00:48]} {[%emt 00:01:04]}
39. Nxb5 {[%clk 00:04:40]} {[%emt 00:00:29]} Kf7 {[%clk 00:01:04]} {[%emt
00:00:14]} 40. Nxa7 {[%clk 00:04:08]} {[%emt 00:01:03]} Nb6 {[%clk 00:01:21]}
{[%emt 00:00:13]} 41. Nb5 {[%clk 00:02:33]} {[%emt 00:02:04]} Ke7 {[%clk
00:30:01]} {[%emt 00:01:50]} 42. Kf2 {[%clk 00:26:49]} {[%emt 00:06:14]} Kd7
{[%clk 00:29:45]} {[%emt 00:00:46]} 43. Ke3 {[%clk 00:25:12]} {[%emt 00:02:06]}
Kc6 {[%clk 00:23:21]} {[%emt 00:06:55]} 44. Na3 {[%clk 00:21:39]} {[%emt
00:04:03]} Nd5+ {[%clk 00:22:21]} {[%emt 00:01:30]} 45. Kd4 {[%clk 00:21:14]}
{[%emt 00:00:56]} Nxf4 {[%clk 00:22:28]} {[%emt 00:00:23]} 46. b5+ {[%clk
00:15:31]} {[%emt 00:06:14]} Kb6 {[%clk 00:21:33]} {[%emt 00:01:24]} 47. c4
{[%clk 00:12:48]} {[%emt 00:03:13]} Ne6+ {[%clk 00:19:05]} {[%emt 00:02:58]} 48.
Kd5 {[%clk 00:12:46]} {[%emt 00:00:31]} Nf4+ {[%clk 00:18:40]} {[%emt
00:00:56]} 49. Kd6 {[%clk 00:12:38]} {[%emt 00:00:35]} e3 {[%clk 00:13:15]}
{[%emt 00:05:57]} 50. c5+ {[%clk 00:12:41]} {[%emt 00:00:27]} Ka7 {[%clk
00:13:39]} {[%emt 00:00:06]} 51. c6 {[%clk 00:10:15]} {[%emt 00:02:55]} 1-0

[Event "NJSK 2026 Jeugd B"]
[Site "Helmond, Netherlands"]
[Date "2026.04.27"]
[Round "3.10"]
[White "Woldhuis, Marnik"]
[Black "Yantur, Arda"]
[Result "1/2-1/2"]
[TimeControl "90min/40moves + 30min + 30sec/move"]
[WhiteTitle "-"]
[BlackTitle "-"]
[WhiteFideId "1087096"]
[BlackFideId "40102041"]
[WhiteElo "1939"]
[BlackElo "1750"]

1. e3 {[%clk 01:30:57]} {[%emt 00:00:02]} e5 {[%clk 01:30:46]} {[%emt
00:00:15]} 2. c4 {[%clk 01:31:19]} {[%emt 00:00:08]} Nf6 {[%clk 01:27:34]}
{[%emt 00:03:42]} 3. Nc3 {[%clk 01:31:37]} {[%emt 00:00:12]} g6 {[%clk
01:27:39]} {[%emt 00:00:26]} 4. d4 {[%clk 01:30:42]} {[%emt 00:01:24]} exd4
{[%clk 01:27:35]} {[%emt 00:00:35]} 5. exd4 {[%clk 01:30:56]} {[%emt 00:00:15]}
Bg7 {[%clk 01:26:47]} {[%emt 00:01:18]} 6. Qe2+ {[%clk 01:30:06]} {[%emt
00:01:20]} Qe7 {[%clk 01:20:07]} {[%emt 00:07:10]} 7. Qxe7+ {[%clk 01:29:44]}
Kxe7 {[%clk 01:20:33]} {[%emt 00:00:56]} 8. Bg5 {[%clk 01:29:27]} {[%emt
00:00:47]} Re8 {[%clk 01:20:34]} {[%emt 00:00:30]} 9. O-O-O {[%clk 01:28:56]}
{[%emt 00:01:00]} Kf8 {[%clk 01:18:46]} {[%emt 00:02:18]} 10. Bf4 {[%clk
01:08:14]} {[%emt 00:21:11]} c6 {[%clk 00:42:35]} {[%emt 00:36:42]} 11. Bd6+
{[%clk 00:59:59]} {[%emt 00:08:44]} Kg8 {[%clk 00:43:00]} {[%emt 00:00:06]} 12.
f3 {[%clk 00:58:52]} {[%emt 00:01:37]} Na6 {[%clk 00:41:26]} {[%emt 00:02:04]}
13. a3 {[%emt 00:08:06]} Re6 {[%clk 00:37:55]} 14. c5 {[%clk 00:53:49]} {[%emt
00:01:56]} b5 {[%clk 00:37:02]} {[%emt 00:01:25]} 15. Nh3 {[%clk 00:48:43]}
{[%emt 00:05:35]} Bh6+ {[%clk 00:30:48]} {[%emt 00:06:45]} 16. Kb1 {[%clk
00:43:50]} {[%emt 00:05:21]} Ne8 {[%clk 00:30:50]} {[%emt 00:00:28]} 17. Ne4
{[%clk 00:37:29]} {[%emt 00:06:51]} Nxd6 {[%clk 00:27:56]} {[%emt 00:03:25]} 18.
Nxd6 {[%clk 00:37:15]} {[%emt 00:00:43]} Nc7 {[%clk 00:24:21]} {[%emt
00:04:06]} 19. Bd3 {[%clk 00:32:44]} {[%emt 00:05:00]} Ne8 {[%clk 00:22:15]}
{[%emt 00:02:37]} 20. d5 {[%clk 00:24:47]} {[%emt 00:08:27]} cxd5 {[%clk
00:22:16]} {[%emt 00:00:29]} 21. Nxe8 {[%clk 00:24:59]} {[%emt 00:00:18]} Rxe8
{[%clk 00:22:35]} {[%emt 00:00:11]} 22. Bxb5 {[%clk 00:25:23]} {[%emt
00:00:06]} Rb8 {[%clk 00:17:13]} {[%emt 00:05:52]} 23. Rhe1 {[%clk 00:23:36]}
{[%emt 00:02:16]} Rxe1 {[%clk 00:17:07]} {[%emt 00:00:36]} 24. Rxe1 {[%clk
00:24:01]} {[%emt 00:00:05]} Rxb5 {[%clk 00:17:24]} {[%emt 00:00:14]} 25. Re8+
{[%clk 00:24:25]} {[%emt 00:00:06]} Bf8 {[%clk 00:17:45]} {[%emt 00:00:09]} 26.
Rxc8 {[%clk 00:24:09]} {[%emt 00:00:45]} Kg7 {[%clk 00:18:08]} {[%emt
00:00:08]} 27. Rc7 {[%clk 00:19:57]} {[%emt 00:04:42]} Bxc5 {[%clk 00:15:10]}
{[%emt 00:03:28]} 28. a4 {[%clk 00:20:22]} {[%emt 00:00:05]} Bb6 {[%clk
00:14:46]} {[%emt 00:00:54]} 29. Rxd7 {[%clk 00:20:20]} {[%emt 00:00:32]} Rb4
{[%clk 00:13:38]} {[%emt 00:01:38]} 30. a5 {[%clk 00:18:30]} {[%emt 00:02:20]}
Bd4 {[%clk 00:12:08]} {[%emt 00:02:00]} 31. Nf4 {[%clk 00:16:24]} {[%emt
00:02:35]} Rxb2+ {[%clk 00:07:33]} {[%emt 00:05:06]} 32. Kc1 {[%clk 00:16:12]}
{[%emt 00:00:42]} Kf6 {[%clk 00:07:42]} {[%emt 00:00:21]} 33. Rxd5 {[%emt
00:03:49]} Rb4 {[%clk 00:06:42]} 34. Kc2 {[%clk 00:11:50]} {[%emt 00:03:03]}
Be3 {[%clk 00:04:30]} {[%emt 00:02:42]} 35. Ne2 {[%clk 00:11:07]} {[%emt
00:01:13]} Ke6 {[%clk 00:04:07]} {[%emt 00:00:52]} 36. Rd3 {[%clk 00:08:36]}
{[%emt 00:03:01]} Bf2 {[%clk 00:03:33]} {[%emt 00:01:04]} 37. Ra3 {[%clk
00:07:23]} {[%emt 00:01:44]} h5 {[%clk 00:02:56]} {[%emt 00:01:07]} 38. Nc3
{[%clk 00:06:07]} {[%emt 00:01:46]} Ke5 {[%clk 00:01:34]} {[%emt 00:01:50]} 39.
Kd3 {[%clk 00:05:54]} {[%emt 00:00:44]} Bc5 {[%clk 00:01:23]} {[%emt 00:00:42]}
40. Ra1 {[%clk 00:04:46]} {[%emt 00:01:38]} Rd4+ {[%clk 00:00:33]} {[%emt
00:01:21]} 41. Kc2 {[%clk 00:05:08]} {[%emt 00:00:07]} Rd7 {[%clk 00:27:17]}
{[%emt 00:03:46]} 42. Ne4 {[%clk 00:26:11]} {[%emt 00:09:27]} f5 {[%clk
00:20:10]} {[%emt 00:07:37]} 43. Nxc5 {[%clk 00:23:04]} {[%emt 00:03:37]} Rc7
{[%clk 00:20:33]} {[%emt 00:00:07]} 44. Ra4 {[%clk 00:23:30]} {[%emt 00:00:04]}
Rxc5+ {[%clk 00:20:59]} {[%emt 00:00:04]} 45. Kd3 {[%clk 00:23:55]} {[%emt
00:00:05]} Rd5+ {[%clk 00:17:05]} {[%emt 00:04:24]} 46. Ke2 {[%clk 00:23:39]}
{[%emt 00:00:45]} f4 {[%clk 00:14:59]} {[%emt 00:02:36]} 47. h4 {[%clk
00:23:01]} {[%emt 00:01:08]} a6 {[%clk 00:15:10]} {[%emt 00:00:19]} 48. Kf2
{[%clk 00:23:18]} {[%emt 00:00:13]} Kf5 {[%clk 00:15:26]} {[%emt 00:00:15]} 49.
Kg1 {[%clk 00:23:43]} {[%emt 00:00:05]} g5 {[%clk 00:13:26]} {[%emt 00:02:30]}
50. hxg5 {[%clk 00:24:08]} {[%emt 00:00:03]} Kxg5 {[%clk 00:13:55]} {[%emt
00:00:02]} 51. Kh2 {[%clk 00:24:26]} {[%emt 00:00:11]} Rf5 {[%clk 00:13:59]}
{[%emt 00:00:27]} 52. Kh3 {[%clk 00:24:50]} {[%emt 00:00:07]} Kf6 {[%clk
00:09:43]} {[%emt 00:04:46]} 53. Kh4 {[%clk 00:23:37]} {[%emt 00:01:42]} Ke6
{[%clk 00:08:45]} {[%emt 00:01:29]} 54. g3 {[%clk 00:23:32]} {[%emt 00:00:34]}
Ke5 {[%emt 00:05:13]} 1/2-1/2